Cogmind - Beta 14 @@@ ROGUE MODE // 2024.11.08 @ 11:00:35 Player: Gyavenson Result: Self-destructed Performance ------------- Evolutions (2) 1000 Regions Visited (3) 600 Robots Destroyed (39) 195 Value Destroyed (928) 928 Prototype IDs (2) 40 Alien Tech Used (0) 0 Bonus (0) 0 TOTAL SCORE: 2763 Bonus ------- None Cogmind --------- Core Integrity 4/550 Matter 233/300 Energy 48/100 System Corruption 4% Temperature Cool (9) Movement Core (1450) Ox28 Location -8/Materials Parts ------- > --- POWER (1) -------- (None) > --- PROPULSION (3) --- (None) > --- UTILITY (5) ------ Small Storage Unit Huge Storage Unit Advanced Terrain Scan Processor > --- WEAPON (2) ------- (None) > --- INVENTORY (25) --- Compact Matter Pod (150) Structural Scanner Signal Interpreter Light Armor Plating Peak State ------------ > --- POWER ------------ Deuterium Engine > --- PROPULSION ------- Compact Wheel Compact Wheel VTOL Module > --- UTILITY ---------- Small Storage Unit Huge Storage Unit Improved Terrain Scanner Terrain Scan Processor Hardened Light Armor Plating > --- WEAPON ----------- Heavy EM Shotgun Heavy Particle Gun > --- INVENTORY -------- VTOL Module VTOL Module Compact Matter Pod Structural Scanner Signal Interpreter Light Armor Plating Improved Light Armor Plating Hardlight Generator Mini Grenade Launcher [Rating: 25] Favorites ----------- Power Deuterium Engine Engine Deuterium Engine Propulsion Compact Wheel Treads Light Treads Wheel Compact Wheel Flight Unit VTOL Module Utility Small Storage Unit Device Structural Scanner Storage Small Storage Unit Processor Terrain Scan Processor Protection Hardened Light Armor Plating Weapon Light Assault Rifle Energy Gun Heavy Particle Gun Ballistic Gun Light Assault Rifle Launcher Mini Grenade Launcher Build | -11 -10 -9 -8 ------- Run | Yrd Mat Mat Mat Slots Evolved 4 | . . 2 2 Power . | . . . . Propulsion 1 | . . . 1 Utility 3 | . . 2 1 Weapon . | . . . . Parts Attached 45 | 6 11 14 14 Power 7 | . 3 3 1 Engine 7 | . 3 3 1 Core . | . . . . Reactor . | . . . . Propulsion 10 | 2 1 3 4 Treads 2 | 2 . . . Leg . | . . . . Wheel 5 | . 1 3 1 Hover . | . . . . Flight 3 | . . . 3 Utility 14 | . 4 3 7 Device 5 | . . 2 3 Storage 4 | . 3 . 1 Processor 2 | . . 1 1 Hackware . | . . . . Protection 3 | . 1 . 2 Artifact . | . . . . Weapon 14 | 4 3 5 2 Energy Gun 7 | 1 2 3 1 Energy Cannon . | . . . . Ballistic Gun 6 | 3 1 2 . Ballistic Cannon . | . . . . Launcher 1 | . . . 1 Special Weapon . | . . . . Impact Weapon . | . . . . Slashing Weapon . | . . . . Piercing Weapon . | . . . . Special Melee Weapon . | . . . . Unidentified Prototypes 2 | . . 1 1 Parts Lost 22 | . 3 2 17 Power 2 | . . . 2 Propulsion 9 | . 1 2 6 Utility 7 | . 1 . 6 Weapon 4 | . 1 . 3 Highest Loss Streak 12 | . 1 1 12 To Critical Strikes . | . . . . Average Slot Usage (%) 91 | . 91 93 87 Engine 10 | . 11 10 8 Treads 8 | . 23 3 . Wheel 13 | . 3 18 16 Flight 1 | . . . 5 Device 9 | . . 17 9 Storage 14 | . 13 13 16 Processor 6 | . . 8 9 Protection 4 | . 9 . 7 Energy Gun 10 | . 5 11 13 Ballistic Gun 10 | . 22 10 . Peak Build Rating 25 | 4 7 16 25 Average Rating 12 | 3 6 12 20 On Entrance 6 | . 4 7 16 Naked Turns . | . . . . Heaviest Build 107 | 3 16 20 107 Greatest Support 40 | 40 40 32 32 Greatest Overweight (x) 31 | . . . 31 Average Overweight (x) . | . . . 2 Largest Inventory Capacity 25 | 5 8 8 25 Average Capacity 12 | 5 7 8 22 Most Carried 9 | 5 8 8 9 Average Carried 6 | 3 4 7 7 Final Capacity 25 | 5 8 8 25 Final Carried 8 | 5 8 8 4 Class Distribution -------------------- 94% | Mutant 5% | Scavenger-Mutant Dominant Class ---------------- Mutant | -10/Materials Mutant | -9/Materials Mutant | -8/Materials Resources | -11 -10 -9 -8 ----------- Run | Yrd Mat Mat Mat Matter Collected 918 | 260 168 166 324 Remotely 99 | . . . 99 Salvage Created 1225 | . 349 355 521 Parts 92 | . 26 29 37 Haulers Intercepted . | . . . . Recyclers Shooed . | . . . . Parts Field Recycled . | . . . . Retrieved Matter . | . . . . Parts Self-Destructed . | . . . . Prevented . | . . . . Kills | -11 -10 -9 -8 ------- Run | Yrd Mat Mat Mat Combat Hostiles Destroyed 27 | . 10 9 8 Guns 24 | . 10 9 5 AOE 3 | . . . 3 Classes Destroyed 8 | . 4 1 3 Builder 3 | . . . 3 Recycler 3 | . 1 1 1 Operator 1 | . . . 1 Watcher 5 | . 2 2 1 Swarmer 11 | . 6 5 . Grunt 9 | . 4 2 3 Sentry 6 | . . 2 4 Hunter 1 | . . . 1 Best Kill Streak 5 | . 5 3 4 Combat Bots Only 5 | . 5 3 2 Max Kills in Single Turn 3 | . 1 2 3 Gunslinging 1 | . . 1 . Exploded 1 | . . . 1 Melee . | . . . . Uniques/NPCs Destroyed . | . . . . Combat | -11 -10 -9 -8 -------- Run | Yrd Mat Mat Mat Hostile Shots Fired 267 | . 76 42 149 Missed 69 | . 10 14 45 Damage Taken 2762 | . 707 310 1745 Core 702 | . 86 70 546 Absorbed by Shields 24 | . . . 24 Core Remaining (%) 82 | 100 65 82 . Volleys Fired 102 | . 37 31 34 Largest 2 | . 2 2 2 Hottest 105 | . 60 95 105 Shots Fired 187 | . 74 62 51 Gun 170 | . 74 62 34 Cannon . | . . . . Launcher 17 | . . . 17 Special . | . . . . Kinetic 81 | . 51 30 . Thermal 72 | . 23 32 17 Explosive 17 | . . . 17 Electromagnetic 17 | . . . 17 Robot Hit Streak 11 | . 8 7 11 Robot Miss Streak 3 | . 3 3 3 Penetration Max . | . . . . Secondary Targets 4 | . 3 1 . Max Gunslinging Chain 1 | . 1 1 . Shots Hit Robots 131 | . 50 40 41 Core Hits 72 | . 23 20 29 Critical Kills . | . . . . Critical Parts Destroyed . | . . . . Critical Strikes . | . . . . Melee Attacks . | . . . . Impact . | . . . . Slashing . | . . . . Piercing . | . . . . Sneak Attacks . | . . . . Combat Hostiles . | . . . . Follow-up Attacks . | . . . . Damage Inflicted 2300 | . 502 485 1313 Guns 1536 | . 502 483 551 Cannons . | . . . . Explosions 762 | . . . 762 Melee . | . . . . Ramming 2 | . . 2 . Kinetic 457 | . 338 119 . Thermal 852 | . 164 364 324 Explosive 669 | . . . 669 Electromagnetic 320 | . . . 320 Impact . | . . . . Slashing . | . . . . Piercing . | . . . . Highest Corruption 4 | . . . 4 Average Corruption 3 | . . . 3 Corruption Purged . | . . . . Corruption Blocked . | . . . . Effects 5 | . . . 5 Matter Fused 1 | . . . 1 Heat Flow Errors 2 | . . . 2 Energy Discharges 2 | . . . 2 Overload Shots . | . . . . Overflow Damage 20 | . . . 20 Projectiles . | . . . . Explosions 20 | . . . 20 Melee . | . . . . Knockbacks . | . . . . Impact . | . . . . Kinetic . | . . . . Secondary . | . . . . Self-Inflicted Damage 223 | . . 1 222 Shots 9 | . . . 9 Rammed 1 | . . 1 . Targets Rammed 1 | . . 1 . Kicked . | . . . . Crushed . | . . . . Highest Temperature 333 | . 333 86 305 Average Temperature 86 | . 118 27 99 Received Heat Transfer 756 | . 264 87 405 Effects 1 | . . . 1 Damage (minor) 1 | . . . 1 Siege Activations . | . . . . Robots Corrupted . | . . . . Combat Hostiles . | . . . . Parts Fried . | . . . . Impact Corruptions . | . . . . Robots Melted . | . . . . Combat Hostiles . | . . . . Parts Melted 3 | . . 2 1 Heat Transferred 1688 | . 375 769 544 Parts Sabotaged . | . . . . Parts Stolen . | . . . . Parts Stripped . | . . . . Power Chain Reactions 1 | . . . 1 Alert | -11 -10 -9 -8 ------- Run | Yrd Mat Mat Mat Peak Influence 296 | . 204 296 157 Initial 122 | . . 26 122 Average 105 | . 64 180 62 Maximum Alert Level 1 | . 1 1 . Low Security (%) 81 | 100 95 55 100 Level 1 18 | . 4 44 . Level 2 . | . . . . Level 3 . | . . . . Level 4 . | . . . . Level 5 . | . . . . High Security . | . . . . Max Security . | . . . . Squads Dispatched 3 | . . 2 1 Investigation 1 | . . . 1 Extermination . | . . . . Reinforcement 2 | . . 2 . Assault . | . . . . Garrison . | . . . . Intercept . | . . . . Searches Triggered . | . . . . Construction Impeded . | . . . . Haulers Reinforced . | . . . . Active Scanning Responses . | . . . . Cargo Convoy Interrupts . | . . . . Stealth | -11 -10 -9 -8 --------- Run | Yrd Mat Mat Mat Distress Signals 1 | . . 1 . Communications Jammed . | . . . . Distress Signals . | . . . . Times Spotted 54 | . 15 26 13 Peak Tracking Total 5 | . 5 4 5 Tactical Retreats 5 | . 1 4 . Traps | -11 -10 -9 -8 ------- Run | Yrd Mat Mat Mat Traps Triggered 8 | . 2 2 4 Indirectly . | . . . . Trap Hack Attempts . | . . . . Triggered . | . . . . Disarmed . | . . . . Reprogrammed . | . . . . Reused . | . . . . Traps Extracted . | . . . . Installed . | . . . . Triggered . | . . . . Machines | -11 -10 -9 -8 ---------- Run | Yrd Mat Mat Mat Machines Disabled 1 | . . . 1 Max in Single Turn 1 | . . . 1 Machines Repaired . | . . . . Machines Dismantled . | . . . . Machines Sabotaged . | . . . . Overloaded Fab Kills . | . . . . Hacking | -11 -10 -9 -8 --------- Run | Yrd Mat Mat Mat Machines Accessed 4 | . 1 2 1 Terminals 4 | . 1 2 1 Fabricators . | . . . . Repair Stations . | . . . . Recycling Units . | . . . . Scanalyzers . | . . . . Garrison Access . | . . . . Total Hacks 10 | . 3 3 4 Successful 6 | . 2 1 3 Failed 4 | . 1 2 1 Catastrophic . | . . . . Database Lockouts . | . . . . Manual 1 | . . 1 . Terminals 10 | . 3 3 4 Fabricators . | . . . . Repair Stations . | . . . . Recycling Units . | . . . . Scanalyzers . | . . . . Garrison Access . | . . . . Terminal Hacks 6 | . 2 1 3 Record 2 | . . . 2 Alert Level 1 | . . 1 . Unreport Threat 1 | . . . 1 Locate Traps 1 | . 1 . . Hauler Manifests 1 | . 1 . . Fabricator Hacks . | . . . . Repair Station Hacks . | . . . . Recycling Unit Hacks . | . . . . Scanalyzer . | . . . . Garrison Access Hacks . | . . . . Unauthorized Hacks . | . . . . Terminals . | . . . . Fabricators . | . . . . Repair Stations . | . . . . Recycling Units . | . . . . Scanalyzers . | . . . . Garrison Access . | . . . . Data Cores Recovered 1 | . . . 1 Used . | . . . . Hacking Detections 2 | . . 1 1 Full Trace Events . | . . . . Feedback Events . | . . . . Feedback Blocked . | . . . . Robot Schematics Acquired . | . . . . Robots Built . | . . . . Authchips . | . . . . Time . | . . . . Total Robot Build Rating . | . . . . Part Schematics Acquired . | . . . . Parts Built . | . . . . Authchips . | . . . . Time . | . . . . Total Part Build Rating . | . . . . Parts Repaired . | . . . . Time . | . . . . Parts Recycled . | . . . . Recycled Matter . | . . . . Retrieved Matter . | . . . . Retrieved Components . | . . . . Parts Scanalyzed . | . . . . Part Schematics Acquired . | . . . . Parts Damaged . | . . . . Bothacking | -11 -10 -9 -8 ------------ Run | Yrd Mat Mat Mat Used RIF Installer . | . . . . Robots Hacked . | . . . . Non-combat . | . . . . Combat . | . . . . Robot Hacks Applied . | . . . . Relay Couplers Released . | . . . . Fabnet Peak Effective % . | . . . . Robots Rewired . | . . . . Allies Hacked . | . . . . Hacks Repelled . | . . . . Allies | -11 -10 -9 -8 -------- Run | Yrd Mat Mat Mat Total Allies . | . . . . Largest Group . | . . . . Highest-Rated Group . | . . . . Highest-Rated Ally . | . . . . Total Orders . | . . . . Ally Attacks . | . . . . Total Damage . | . . . . Kills . | . . . . Allies Corrupted . | . . . . Allies Melted . | . . . . Intel | -11 -10 -9 -8 ------- Run | Yrd Mat Mat Mat Robot Analysis Total . | . . . . Derelict Logs Recovered . | . . . . Drone Launches . | . . . . Drone Recoveries . | . . . . Exploration | -11 -10 -9 -8 ------------- Run | Yrd Mat Mat Mat Turns Passed 1987 | 87 547 763 590 Spaces Moved 1142 | 47 270 541 284 Core 5 | 4 . . 1 Treads 210 | 43 167 . . Legs . | . . . . Wheels 925 | . 103 541 281 Hover . | . . . . Flight 2 | . . . 2 Fastest Speed 50 | 50 100 100 100 Average Speed 123 | 150 137 100 151 Slowest Speed 1715 | 160 160 100 1715 Overloaded Moves . | . . . . Propulsion Burnouts . | . . . . Robots Hopped . | . . . . Cave-ins Triggered 1 | . . . 1 Exploration Rate (%) 31 | 4 42 44 36 Regions Visited 3 Branch Regions . Pre-discovered Areas . | . . . . Known Exits Taken . | . . . . Unknown Exits Taken 3 | 1 1 1 . Scrap Searched . | . . . . Spaces Dug . | . . . . Terrain Destroyed 82 | . . . 82 Melee . | . . . . Projectile . | . . . . AOE 82 | . . . 82 Terrain Rammed . | . . . . Walls Destroyed . | . . . . Machines Disabled . | . . . . Actions | -11 -10 -9 -8 --------- Run | Yrd Mat Mat Mat Total 1537 | 61 378 707 391 Wait 211 | 3 51 106 51 Move 1139 | 46 269 540 284 Hop . | . . . . Pick Up 29 | 6 8 9 6 Fast Attach 9 | 2 . 4 3 Attach 22 | 2 6 6 8 Detach . | . . . . Swap 14 | 2 5 4 3 Drop 10 | . 2 6 2 Fire 102 | . 37 31 34 Melee . | . . . . Ram 1 | . . 1 . Kick . | . . . . Crush . | . . . . Escape Stasis . | . . . . Rewire . | . . . . Trap . | . . . . Miscellaneous . | . . . . Route ------- -11/Scrapyard -10/Materials -9/Materials -8/Materials (discovered 1 exit: [*Sto]) History --------- Turn | Location | Event 41 | -11/Scrapyard | Discovered new exit (range 16) 88 | -11/Scrapyard | Entered Materials 304 | -10/Materials | Build established: Mutant 514 | -10/Materials | Discovered new exit (range 15) 635 | -10/Materials | Entered another Materials area 635 | -9/Materials | Evolved 2 slots: Utility x2 1382 | -9/Materials | Discovered new exit (range 10) 1398 | -9/Materials | Entered another Materials area 1398 | -8/Materials | Evolved 2 slots: Propulsion x1, Utility x1 1903 | -8/Materials | Discovered new exit (range 11) 1953 | -8/Materials | Core integrity fell below 50% 1968 | -8/Materials | Crushed by falling debris 1968 | -8/Materials | Core integrity fell below 20% 1988 | -8/Materials | Self-destructed Last Messages --------------- 01960_ U-05 Engineer lays Concrete. 01961_ U-05 Engineer builds a Wall. 01961_ Tractor Beam destroyed. 01965_ The unstable cave ceiling collapses. 01966_ U-05 Engineer lays Concrete. 01967_ The unstable cave ceiling collapses. 01967_ U-05 Engineer lays Concrete. 01968_ The unstable cave ceiling collapses. 01968_ Crushed by falling debris. [Achievement: Unlikely Earthworm] 01968_ U-05 Engineer builds a Wall. 01978_ The unstable cave ceiling collapses. 01984_ W-25 Informer destroyed. 01985_ The unstable cave ceiling collapses. 01985_ Hardlight Generator destroyed. 01986_ Imp. Light Armor Plating destroyed. 01986_ Destroyed Imp. Light Armor Plating. 01986_ Mni. Grenade Launcher destroyed. 01986_ Destroyed Mni. Grenade Launcher. 01988_ System corrupted: Energy discharge (-22). Map ----- +----------------------------------------------------+ | ???????????????????????????????#????#?#?###??? | | ?????????????????????????????????? ? ???##?##? | | ???????????????????????????? ??? ?? ??? ??#??? | | ??????????????????????????????#??####?#???##?? | | ?????????????????????????#?? ??##???#?#?#??## | | ???????????????????????????? ?#?#???#????#??## | | ???????????????????????????#? #?????? ?? ??### | | ???????????????????????????? ##?"""?""? ??#?? | | ?????????????????????????#?? ? ? ?"" ??? ?#### | | ??????????????????????????? # ??? "???##??? | | ????????????????????? ?????!